fUST/lending_fUST_20250202
["ID","MTS","AMOUNT","RATE_DAILY","PERIOD"]
[351246499,1738474240140,-313.92203061,0.00017997,2]
[351246501,1738474240150,-500.0,0.00017997,2]
[351246503,1738474240159,-500.0,0.00017997,2]
[351246504,1738474240168,-500.0,0.00017997,2]
[351246505,1738474240177,-500.0,0.00017997,2]
[351246506,1738474240187,-500.0,0.00017997,2]
[351246507,1738474240197,-500.0,0.00017997,2]
[351246508,1738474240207,-500.0,0.00017997,2]
[351246509,1738474240216,-500.0,0.00017997,2]
[351246510,1738474240226,-500.0,0.00017997,2]
[351246511,1738474240236,-500.0,0.00017997,2]
[351246512,1738474240246,-500.0,0.00017997,2]
[351246513,1738474240255,-500.0,0.00017997,2]
[351246514,1738474240265,-500.0,0.00017997,2]
[351246515,1738474240275,-500.0,0.00017997,2]
[351246516,1738474240284,-500.0,0.00017997,2]
[351246517,1738474240298,-500.0,0.00017997,2]
[351246518,1738474240307,-500.0,0.00017997,2]
[351246520,1738474240317,-500.0,0.00017997,2]
[351246521,1738474240326,-500.0,0.00017997,2]
[351246522,1738474240337,-500.0,0.00017997,2]
[351246523,1738474240346,-500.0,0.00017997,2]
[351246524,1738474240356,-174.56,0.00017997,2]
[351246525,1738474240367,-207.87534465,0.00017998,5]
[351246526,1738474240377,-21261.14223716,0.00017998,7]
[351246527,1738474241601,-10172.83212777,0.00017998,7]
[351246528,1738474241613,-4083.03139365,0.00017998,7]
[351246529,1738474241625,-25958.74904157,0.00017998,7]
[351246530,1738474241644,-356.52062546,0.00017998,7]
[351246531,1738474241656,-1438.43779679,0.00017998,7]
[351246532,1738474241667,-974.5845965,0.00017998,7]
[351246572,1738474242966,-288.015,0.00017998,7]
[351246589,1738474792515,2971.70187215,0.00015011,2]
[351246590,1738474861953,171.117418,0.00013699,2]
[351246593,1738475049467,-3000.0,0.00019178,30]
[351246594,1738475049488,-3000.0,0.00019178,30]
[351246595,1738475049509,-3000.0,0.00019178,30]
[351246596,1738475049528,-3000.0,0.00019178,30]
[351246597,1738475049548,-3000.0,0.00019178,30]
[351246598,1738475049568,-3000.0,0.00019178,30]
[351246599,1738475049591,-1930.0,0.00019178,30]
[351246601,1738475080350,172.661372,0.00013973,2]
[351246602,1738475183661,234.60414598,0.00015011,2]
[351246605,1738475254139,-500.0,0.00015299,2]
[351246606,1738475254171,-179.43264216,0.00015299,2]
[351246607,1738475254198,-300.0,0.00015299,2]
[351246608,1738475254227,-255209.89253131,0.000153,2]
[351246609,1738475351113,-300.0,0.00015299,2]
[351246610,1738475351134,-59141.70905253,0.000153,2]
[351246611,1738475352123,-19276.3051866,0.000153,2]
[351246612,1738475362102,-35231.5364999,0.000153,2]
[351246613,1738475370196,-289721.67001487,0.000153,2]
[351246617,1738475420012,1163.11049213,0.00015011,2]
[351246653,1738475432195,-710.17380002,0.000153,2]
[351246656,1738475432207,-5206.78828135,0.000153,2]
[351246658,1738475432216,-502.14763186,0.00016438,2]
[351246660,1738475432225,-478.27403273,0.00016438,2]
[351246664,1738475432258,-21.72596727,0.00016438,2]
[351246666,1738475432267,-300.0,0.00016538,2]
[351246668,1738475432277,-500.0,0.00016539,2]
[351246670,1738475432287,-500.0,0.00016539,2]
[351246672,1738475432296,-500.0,0.00016539,2]
[351246674,1738475432305,-500.0,0.00016539,2]
[351246676,1738475432315,-500.0,0.00016539,2]
[351246678,1738475432324,-16895.20721173,0.0001654,2]
[351246684,1738475432380,-463.2401,0.0001654,2]
[351246685,1738475432407,-7282.53643643,0.0001654,2]
[351246699,1738475438067,-259.01625184,0.0001654,2]
[351246700,1738475438077,-500.0,0.00016676,2]
[351246701,1738475438086,-170.3209,0.00016676,2]
[351246702,1738475438096,-500.0,0.00016676,2]
[351246703,1738475438107,-500.0,0.00016813,2]
[351246704,1738475438116,-500.0,0.00016813,2]
[351246705,1738475438126,-500.0,0.0001695,2]
[351246706,1738475438135,-500.0,0.0001695,2]
[351246707,1738475438144,-184.2,0.00016974,3]
[351246709,1738475438153,-500.0,0.00017087,2]
[351246711,1738475438163,-500.0,0.00017087,2]
[351246713,1738475438171,-184.2,0.0001714,3]
[351246714,1738475438181,-500.0,0.00017224,2]
[351246715,1738475438190,-500.0,0.00017224,2]
[351246716,1738475438200,-184.2,0.00017305,3]
[351246717,1738475438209,-500.0,0.00017361,2]
[351246718,1738475438219,-487.57884453,0.00017361,2]
[351246719,1738475438228,-184.2,0.00017471,3]
[351246720,1738475438237,-500.0,0.00017498,2]
[351246721,1738475438246,-500.0,0.00017635,2]
[351246722,1738475438255,-184.2,0.00017636,3]
[351246723,1738475438264,-396.0,0.00017646,2]
[351246724,1738475438274,-13255.3373504,0.00017714,2]
[351246725,1738475438283,-500.0,0.00017772,2]
[351246726,1738475438292,-184.2,0.00017801,3]
[351246727,1738475438302,-13792.02722806,0.00017863,2]
[351246739,1738475440299,-6207.97277194,0.00017863,2]
[351246740,1738475440308,-398.0,0.000179,7]
[351246741,1738475440317,-500.0,0.00017909,2]
[351246742,1738475440326,-162.0,0.0001792,2]
[351246743,1738475440335,-162.0,0.0001792,2]
[351246744,1738475440346,-162.0,0.0001792,2]
[351246745,1738475440355,-162.0,0.0001792,2]
[351246746,1738475440364,-162.18,0.0001792,2]
[351246747,1738475440373,-249.24,0.0001794,2]
[351246748,1738475440382,-184.2,0.00017967,4]
[351246749,1738475440391,-475.60284952,0.00017997,2]
[351246750,1738475440399,-207.87534464,0.00017998,5]
[351246751,1738475440408,-10510.27450858,0.00017998,7]
[351246825,1738475720488,233.1223212,0.00013699,2]
[351246828,1738476190770,172.29685,0.00013973,2]
[351246829,1738476331113,-286.0867239,0.00015183,2]
[351246830,1738476331138,-500.0,0.00015342,2]
[351246831,1738476331161,-217.3966751,0.00015497,2]
[351246832,1738476331185,-300.0,0.00015556,2]
[351246833,1738476331210,-8673.94840795,0.00015557,2]
[351246834,1738476416099,-300.0,0.00015556,2]
[351246835,1738476416120,-13460.946828,0.00015557,2]
[351246836,1738476435119,-2765.10476405,0.00015557,2]
[351246837,1738476435139,-288.47710918,0.00016338,2]
[351246838,1738476435160,-150.0,0.000164,2]
[351246839,1738476435186,-300.0,0.00016437,2]
[351246840,1738476435206,-500.0,0.00016438,2]
[351246841,1738476435226,-500.0,0.00016438,2]
[351246842,1738476435247,-500.0,0.00016438,2]
[351246843,1738476435269,-602.87993187,0.00016438,2]
[351246844,1738476435289,-500.0,0.00016438,2]
[351246845,1738476435310,-401.42517882,0.00016438,2]
[351246846,1738476435330,-505.13236114,0.00016438,2]
[351246847,1738476435350,-507.52712691,0.00016438,2]
[351246848,1738476435370,-506.64041338,0.00016438,2]
[351246849,1738476435390,-500.0,0.00016438,2]
[351246850,1738476435410,-504.56176528,0.00016438,2]
[351246851,1738476435434,-500.0,0.00016438,2]
[351246852,1738476435455,-500.0,0.00016438,2]
[351246853,1738476435476,-636.88779397,0.00016438,2]
[351246854,1738476435496,-500.0,0.00016438,2]
[351246855,1738476435517,-500.0,0.00016438,2]
[351246856,1738476435538,-500.0,0.00016438,2]
[351246857,1738476435560,-500.0,0.00016438,2]
[351246858,1738476435581,-500.0,0.00016438,2]
[351246859,1738476435602,-504.03436663,0.00016438,2]
[351246860,1738476435624,-478.76657758,0.00016438,2]
[351246861,1738476435647,-500.0,0.00016438,2]
[351246862,1738476435670,-500.0,0.00016438,2]
[351246863,1738476435692,-500.0,0.00016438,2]
[351246864,1738476435713,-500.0,0.00016438,2]
[351246865,1738476435734,-500.0,0.00016438,2]
[351246866,1738476435755,-500.0,0.00016438,2]
[351246867,1738476435775,-500.0,0.00016438,2]
[351246868,1738476435797,-51.29186419,0.00016438,2]
[351246869,1738476444104,-448.70813581,0.00016438,2]
[351246870,1738476444127,-530.69206462,0.00016438,2]
[351246871,1738476444152,-500.0,0.00016438,2]
[351246872,1738476444175,-512.5349041,0.00016438,2]
[351246873,1738476444198,-500.0,0.00016438,2]
[351246874,1738476444219,-500.0,0.00016438,2]
[351246875,1738476444239,-500.0,0.00016438,2]
[351246876,1738476444262,-500.0,0.00016438,2]
[351246877,1738476444284,-500.0,0.00016438,2]
[351246878,1738476444306,-500.0,0.00016438,2]
[351246879,1738476444328,-500.0,0.00016438,2]
[351246880,1738476444350,-500.0,0.00016438,2]
[351246881,1738476444371,-500.0,0.00016438,2]
[351246882,1738476444392,-500.0,0.00016438,2]
[351246883,1738476444413,-500.0,0.00016438,2]
[351246884,1738476444436,-500.0,0.00016438,2]
[351246885,1738476444458,-500.0,0.00016438,2]
[351246886,1738476444480,-500.0,0.00016438,2]
[351246887,1738476444503,-500.0,0.00016438,2]
[351246888,1738476444523,-500.0,0.00016438,2]
[351246889,1738476444546,-500.0,0.00016438,2]
[351246890,1738476444568,-500.0,0.00016438,2]
[351246891,1738476444589,-500.0,0.00016438,2]
[351246892,1738476444610,-500.0,0.00016438,2]
[351246893,1738476444631,-505.22989803,0.00016438,2]
[351246894,1738476444651,-484.20297365,0.00016438,2]
[351246895,1738476444673,-525.90122857,0.00016438,2]
[351246896,1738476444694,-500.0,0.00016438,2]
[351246897,1738476444716,-500.0,0.00016438,2]
[351246898,1738476444738,-500.0,0.00016438,2]
[351246899,1738476444759,-500.0,0.00016438,2]
[351246900,1738476444781,-500.0,0.00016438,2]
[351246901,1738476444802,-500.0,0.00016438,2]
[351246902,1738476444823,-500.0,0.00016438,2]
[351246903,1738476444844,-500.0,0.00016438,2]
[351246904,1738476444866,-500.0,0.00016438,2]
[351246905,1738476444888,-500.0,0.00016438,2]
[351246906,1738476444910,-500.0,0.00016438,2]
[351246907,1738476444935,-500.0,0.00016438,2]
[351246908,1738476444957,-500.0,0.00016438,2]
[351246909,1738476444979,-500.0,0.00016438,2]
[351246910,1738476445002,-500.0,0.00016438,2]
[351246911,1738476445030,-500.0,0.00016438,2]
[351246912,1738476445052,-617.65844435,0.00016438,2]
[351246913,1738476445075,-500.0,0.00016438,2]
[351246914,1738476445099,-500.0,0.00016438,2]
[351246915,1738476445123,-500.0,0.00016438,2]
[351246916,1738476445145,-500.0,0.00016438,2]
[351246917,1738476445167,-509.3914945,0.00016438,2]
[351246918,1738476445193,-500.0,0.00016438,2]
[351246919,1738476445215,-500.0,0.00016438,2]
[351246920,1738476445238,-508.07603986,0.00016438,2]
[351246921,1738476445259,-500.0,0.00016438,2]
[351246922,1738476445282,-500.0,0.00016438,2]
[351246923,1738476445304,-500.0,0.00016438,2]
[351246924,1738476445326,-500.0,0.00016438,2]
[351246925,1738476445348,-500.0,0.00016438,2]
[351246926,1738476445370,-500.0,0.00016438,2]
[351246927,1738476445391,-501.99943055,0.00016438,2]
[351246928,1738476445412,-500.0,0.00016438,2]
[351246929,1738476445438,-500.0,0.00016438,2]
[351246930,1738476445461,-500.0,0.00016438,2]
[351246931,1738476445484,-500.0,0.00016438,2]
[351246932,1738476445507,-500.0,0.00016438,2]
[351246933,1738476445531,-500.0,0.00016438,2]
[351246934,1738476445554,-271.35081456,0.00016438,2]
[351246935,1738476445579,-500.0,0.00016438,2]
[351246936,1738476445600,-500.0,0.00016438,2]
[351246937,1738476445622,-500.0,0.00016438,2]
[351246938,1738476445645,-292.28802544,0.00016438,2]
[351246939,1738476445670,-1267.09,0.00016438,2]
[351246940,1738476445693,-500.0,0.00016438,2]
[351246941,1738476445714,-500.0,0.00016438,2]
[351246942,1738476445736,-500.0,0.00016438,2]
[351246943,1738476445758,-500.0,0.00016438,2]
[351246944,1738476445781,-500.0,0.00016438,2]
[351246945,1738476445803,-500.0,0.00016438,2]
[351246946,1738476445827,-500.0,0.00016438,2]
[351246947,1738476445848,-500.0,0.00016438,2]
[351246948,1738476445870,-500.0,0.00016438,2]
[351246949,1738476445892,-500.0,0.00016438,2]
[351246950,1738476445914,-500.0,0.00016438,2]
[351246951,1738476445937,-500.0,0.00016438,2]
[351246952,1738476445960,-500.0,0.00016438,2]
[351246953,1738476445986,-500.0,0.00016438,2]
[351246954,1738476446024,-500.0,0.00016438,2]
[351246955,1738476446046,-500.0,0.00016438,2]
[351246956,1738476446069,-500.0,0.00016438,2]
[351246957,1738476446090,-500.0,0.00016438,2]
[351246958,1738476446112,-500.0,0.00016438,2]
[351246959,1738476446133,-508.40694186,0.00016438,2]
[351246960,1738476446154,-500.0,0.00016438,2]
[351246961,1738476446176,-500.0,0.00016438,2]
[351246962,1738476446197,-508.69313508,0.00016438,2]
[351246963,1738476446218,-500.0,0.00016438,2]
[351246964,1738476446239,-278.91971324,0.00016438,2]
[351246965,1738476446260,-500.0,0.00016438,2]
[351246966,1738476446281,-500.0,0.00016438,2]
[351246967,1738476446304,-916.48,0.00016438,2]
[351246968,1738476446327,-500.0,0.00016438,2]
[351246969,1738476446349,-500.0,0.00016438,2]
[351246970,1738476446467,-500.0,0.00016438,2]
[351246971,1738476446494,-2208.86,0.00016438,2]
[351246972,1738476446518,-500.0,0.00016438,2]
[351246973,1738476446540,-500.0,0.00016438,2]
[351246974,1738476446561,-500.0,0.00016438,2]
[351246975,1738476446582,-503.85214754,0.00016438,2]
[351246976,1738476446604,-500.0,0.00016438,2]
[351246977,1738476446625,-500.0,0.00016438,2]
[351246978,1738476446646,-500.0,0.00016438,2]
[351246979,1738476446667,-500.0,0.00016438,2]
[351246980,1738476446694,-1066.68,0.00016438,2]
[351246981,1738476446722,-977.97,0.00016438,2]
[351246982,1738476446745,-519.67,0.00016438,2]
[351246983,1738476446766,-500.0,0.00016438,2]
[351246984,1738476446788,-316.36,0.00016438,2]
[351246985,1738476446814,-500.0,0.00016438,2]
[351246986,1738476446836,-500.0,0.00016438,2]
[351246987,1738476446859,-500.0,0.00016438,2]
[351246988,1738476446880,-500.0,0.00016438,2]
[351246989,1738476446902,-500.0,0.00016438,2]
[351246990,1738476446929,-688.79,0.00016438,2]
[351246991,1738476446951,-502.13956518,0.00016438,2]
[351246992,1738476446973,-500.0,0.00016438,2]
[351246993,1738476446995,-500.94174559,0.00016438,2]
[351246994,1738476447019,-1622.28,0.00016438,2]
[351246995,1738476447044,-500.0,0.00016438,2]
[351246996,1738476447065,-503.46709409,0.00016438,2]
[351246997,1738476447087,-500.0,0.00016438,2]
[351246998,1738476447109,-500.0,0.00016438,2]
[351246999,1738476447130,-500.0,0.00016438,2]
[351247000,1738476447151,-208.57806212,0.00016438,2]
[351247001,1738476447173,-610.06,0.00016438,2]
[351247002,1738476447194,-500.0,0.00016438,2]
[351247003,1738476447216,-500.0,0.00016438,2]
[351247004,1738476447238,-500.0,0.00016438,2]
[351247005,1738476447261,-500.0,0.00016438,2]
[351247006,1738476447282,-497.91336132,0.00016438,2]
[351247007,1738476447304,-500.0,0.00016438,2]
[351247008,1738476447326,-500.0,0.00016438,2]
[351247009,1738476447350,-567.21,0.00016438,2]
[351247010,1738476447371,-500.0,0.00016438,2]
[351247011,1738476447395,-1103.17,0.00016438,2]
[351247012,1738476447418,-10527.23,0.00016438,2]
[351247013,1738476447440,-500.0,0.00016438,2]
[351247014,1738476447463,-500.0,0.00016438,2]
[351247015,1738476447485,-500.0,0.00016438,2]
[351247016,1738476447507,-548.33,0.00016438,2]
[351247017,1738476447530,-521.99,0.00016438,2]
[351247018,1738476447553,-500.0,0.00016438,2]
[351247019,1738476447578,-500.0,0.00016438,2]
[351247020,1738476447603,-500.0,0.00016438,2]
[351247021,1738476447629,-500.0,0.00016438,2]
[351247022,1738476447652,-512.91866977,0.00016438,2]
[351247023,1738476447677,-500.0,0.00016438,2]
[351247024,1738476447702,-500.0,0.00016538,2]
[351247025,1738476447726,-500.0,0.00016538,2]
[351247026,1738476447748,-501.78949727,0.00016539,2]
[351247027,1738476447770,-500.0,0.00016539,2]
[351247028,1738476447794,-500.0,0.00016539,2]
[351247029,1738476447817,-500.0,0.00016539,2]
[351247030,1738476447838,-501.49813326,0.00016539,2]
[351247031,1738476447859,-498.55747848,0.00016539,2]
[351247032,1738476447880,-500.0,0.00016539,2]
[351247033,1738476447902,-502.16596267,0.00016539,2]
[351247034,1738476447923,-500.92596504,0.00016539,2]
[351247035,1738476447945,-500.0,0.00016539,2]
[351247036,1738476447967,-500.0,0.00016539,2]
[351247037,1738476447990,-500.0,0.00016539,2]
[351247038,1738476448012,-500.0,0.00016539,2]
[351247039,1738476448039,-500.0,0.00016539,2]
[351247040,1738476448061,-500.0,0.00016539,2]
[351247041,1738476448084,-458.38361102,0.00016539,2]
[351247042,1738476448107,-500.0,0.00016539,2]
[351247043,1738476448131,-500.0,0.00016539,2]
[351247044,1738476448153,-500.0,0.00016539,2]
[351247045,1738476448177,-500.0,0.00016539,2]
[351247046,1738476448199,-500.0,0.00016539,2]
[351247047,1738476448221,-500.0,0.00016539,2]
[351247048,1738476448243,-500.0,0.00016539,2]
[351247049,1738476448266,-500.0,0.00016539,2]
[351247050,1738476448287,-500.0,0.00016539,2]
[351247051,1738476448309,-500.0,0.00016539,2]
[351247052,1738476448331,-500.0,0.00016539,2]
[351247053,1738476448352,-500.0,0.00016539,2]
[351247054,1738476448373,-426.77811616,0.00016539,2]
[351247055,1738476448395,-500.0,0.00016539,2]
[351247056,1738476448415,-500.0,0.00016539,2]
[351247057,1738476448439,-500.0,0.00016539,2]
[351247058,1738476448460,-515.88334991,0.00016539,2]
[351247059,1738476448488,-2057.19,0.00016539,2]
[351247060,1738476448510,-508.87601795,0.00016539,2]
[351247061,1738476448535,-500.0,0.00016539,2]
[351247062,1738476448557,-500.0,0.00016539,2]
[351247063,1738476448579,-460.24324787,0.00016539,2]
[351247064,1738476448602,-500.0,0.00016539,2]
[351247065,1738476448623,-500.0,0.00016539,2]
[351247066,1738476448645,-500.0,0.00016539,2]
[351247067,1738476448670,-3089.73,0.00016539,2]
[351247068,1738476448695,-500.0,0.00016539,2]
[351247069,1738476448719,-500.0,0.00016539,2]
[351247070,1738476448742,-500.0,0.00016539,2]
[351247071,1738476448765,-500.0,0.00016539,2]
[351247072,1738476448786,-288.47710915,0.00016561,2]
[351247073,1738476448810,-500.0,0.00016574,2]
[351247074,1738476448832,-517.28,0.00016575,2]
[351247075,1738476448854,-500.0,0.00016575,2]
[351247076,1738476448876,-500.0,0.00016575,2]
[351247077,1738476448899,-500.0,0.00016575,2]
[351247078,1738476448921,-500.07650369,0.00016575,2]
[351247079,1738476449035,-500.0,0.00016575,2]
[351247080,1738476449059,-500.0,0.00016575,2]
[351247081,1738476449083,-591.95435161,0.00016575,2]
[351247082,1738476449106,-500.0,0.00016575,2]
[351247083,1738476449129,-500.0,0.00016575,2]
[351247084,1738476449150,-248.1482715,0.00016575,2]
[351247085,1738476449172,-500.0,0.00016575,2]
[351247086,1738476449196,-342.05945277,0.00016575,2]
[351247087,1738476449218,-500.0,0.00016575,2]
[351247088,1738476449239,-500.0,0.00016575,2]
[351247089,1738476449260,-500.0,0.00016575,2]
[351247090,1738476449282,-507.88828999,0.00016575,2]
[351247091,1738476449303,-448.01501575,0.00016575,2]
[351247092,1738476449325,-500.0,0.00016575,2]
[351247093,1738476449346,-500.0,0.00016575,2]
[351247094,1738476449369,-500.0,0.00016575,2]
[351247095,1738476449390,-500.0,0.00016575,2]
[351247096,1738476449412,-413.80422357,0.00016575,2]
[351247097,1738476449434,-229.28703028,0.00016575,2]
[351247098,1738476449456,-500.0,0.00016575,2]
[351247099,1738476449479,-500.0,0.00016575,2]
[351247100,1738476449500,-500.0,0.00016575,2]
[351247101,1738476449521,-500.0,0.00016575,2]
[351247102,1738476449542,-500.0,0.00016575,2]
[351247103,1738476449564,-500.0,0.00016575,2]
[351247104,1738476449587,-500.0,0.00016575,2]
[351247105,1738476449609,-618.21864201,0.00016575,2]
[351247106,1738476449631,-500.0,0.00016575,2]
[351247107,1738476449653,-505.38179914,0.00016575,2]
[351247108,1738476449676,-500.0,0.00016575,2]
[351247109,1738476449698,-500.0,0.00016575,2]
[351247110,1738476449721,-500.0,0.00016575,2]
[351247111,1738476449744,-500.0,0.00016575,2]
[351247112,1738476449767,-507.35599046,0.00016575,2]
[351247113,1738476449789,-500.0,0.00016575,2]
[351247114,1738476449815,-500.0,0.00016575,2]
[351247115,1738476449839,-500.0,0.00016575,2]
[351247116,1738476449861,-500.0,0.00016575,2]
[351247117,1738476449883,-500.0,0.00016575,2]
[351247118,1738476449906,-500.0,0.00016575,2]
[351247119,1738476449928,-500.0,0.00016575,2]
[351247120,1738476449950,-500.0,0.00016575,2]
[351247121,1738476449974,-1267.09,0.00016575,2]
[351247122,1738476449997,-500.0,0.00016575,2]
[351247123,1738476450019,-292.75930428,0.00016575,2]
[351247124,1738476450053,-500.0,0.00016575,2]
[351247125,1738476450083,-500.0,0.00016575,2]
[351247126,1738476450107,-500.0,0.00016575,2]
[351247127,1738476450132,-500.0,0.00016575,2]
[351247128,1738476450155,-500.0,0.00016575,2]
[351247129,1738476450179,-500.0,0.00016575,2]
[351247130,1738476450203,-500.0,0.00016575,2]
[351247131,1738476450227,-500.0,0.00016575,2]
[351247132,1738476450251,-500.0,0.00016575,2]
[351247133,1738476450275,-500.0,0.00016575,2]
[351247134,1738476450301,-500.0,0.00016575,2]
[351247135,1738476450326,-500.0,0.00016575,2]
[351247136,1738476450349,-500.0,0.00016575,2]
[351247137,1738476450373,-566.82114575,0.00016575,2]
[351247138,1738476450397,-500.0,0.00016575,2]
[351247139,1738476450423,-916.48,0.00016575,2]
[351247140,1738476450451,-500.0,0.00016575,2]
[351247141,1738476450475,-500.0,0.00016575,2]
[351247142,1738476450498,-500.0,0.00016575,2]
[351247143,1738476450523,-2208.86,0.00016575,2]
[351247144,1738476450548,-500.0,0.00016575,2]
[351247145,1738476450572,-500.0,0.00016575,2]
[351247146,1738476450595,-422.59193917,0.00016575,2]
[351247147,1738476450618,-338.35796954,0.00016575,2]
[351247148,1738476450644,-1066.68,0.00016575,2]
[351247149,1738476450669,-977.97,0.00016575,2]
[351247150,1738476450696,-519.67,0.00016575,2]
[351247151,1738476450720,-471.06,0.00016575,2]
[351247152,1738476450744,-500.0,0.00016575,2]
[351247153,1738476450768,-500.0,0.00016575,2]
[351247154,1738476450792,-500.0,0.00016575,2]
[351247155,1738476450817,-688.79,0.00016575,2]
[351247156,1738476450842,-500.0,0.00016575,2]
[351247157,1738476450867,-1622.28,0.00016575,2]
[351247158,1738476450891,-500.0,0.00016575,2]
[351247159,1738476450915,-500.0,0.00016575,2]
[351247160,1738476450939,-500.0,0.00016575,2]
[351247161,1738476450963,-500.0,0.00016575,2]
[351247162,1738476450987,-500.0,0.00016575,2]
[351247163,1738476451011,-500.0,0.00016575,2]
[351247164,1738476451039,-500.0,0.00016575,2]
[351247165,1738476451063,-182.26280745,0.00016575,2]
[351247166,1738476451091,-567.21,0.00016575,2]
[351247167,1738476451118,-1103.17,0.00016575,2]
[351247168,1738476451142,-10527.23,0.00016575,2]
[351247169,1738476451165,-398.58973083,0.00016575,2]
[351247170,1738476451191,-521.99,0.00016575,2]
[351247171,1738476451214,-500.0,0.00016575,2]
[351247172,1738476451238,-500.0,0.00016575,2]
[351247173,1738476451261,-500.0,0.00016676,2]
[351247174,1738476451283,-500.0,0.00016676,2]
[351247175,1738476451306,-500.0,0.00016676,2]
[351247176,1738476451330,-500.0,0.00016676,2]
[351247177,1738476451353,-500.0,0.00016676,2]
[351247178,1738476451377,-505.44396854,0.00016676,2]
[351247179,1738476451400,-500.0,0.00016676,2]
[351247180,1738476451424,-500.0,0.00016676,2]
[351247181,1738476451449,-500.0,0.00016676,2]
[351247182,1738476451472,-500.0,0.00016676,2]
[351247183,1738476451495,-605.25127706,0.00016676,2]
[351247184,1738476451641,-500.0,0.00016676,2]
[351247185,1738476451666,-500.0,0.00016676,2]
[351247186,1738476451691,-500.0,0.00016676,2]
[351247187,1738476451714,-415.24173051,0.00016676,2]
[351247188,1738476451738,-500.0,0.00016676,2]
[351247189,1738476451762,-2057.19,0.00016676,2]
[351247190,1738476451784,-500.0,0.00016676,2]
[351247191,1738476451806,-500.0,0.00016676,2]
[351247192,1738476451828,-500.0,0.00016676,2]
[351247193,1738476451850,-500.0,0.00016676,2]
[351247194,1738476451872,-500.0,0.00016676,2]
[351247195,1738476451897,-3089.73,0.00016676,2]
[351247196,1738476451922,-500.0,0.00016676,2]
[351247197,1738476451945,-383.94639281,0.00016676,2]
[351247198,1738476451968,-500.0,0.00016676,2]
[351247199,1738476451993,-500.0,0.00016711,2]
[351247200,1738476452016,-500.0,0.00016711,2]
[351247201,1738476452043,-242.38687179,0.00016711,2]
[351247202,1738476452066,-500.0,0.00016712,2]
[351247203,1738476452092,-387.1677724,0.00016712,2]
[351247204,1738476452117,-500.0,0.00016712,2]
[351247205,1738476452140,-500.0,0.00016712,2]
[351247206,1738476452163,-500.0,0.00016712,2]
[351247207,1738476452187,-180.86597093,0.00016712,2]
[351247208,1738476452210,-637.54598833,0.00016712,2]
[351247209,1738476452234,-500.0,0.00016712,2]
[351247210,1738476452257,-500.0,0.00016712,2]
[351247211,1738476452280,-500.0,0.00016712,2]
[351247212,1738476452303,-430.38540521,0.00016712,2]
[351247213,1738476452326,-500.0,0.00016712,2]
[351247214,1738476452349,-506.8554691,0.00016712,2]
[351247215,1738476452373,-329.37,0.00016712,2]
[351247216,1738476452395,-482.67531648,0.00016712,2]
[351247217,1738476452417,-507.36123817,0.00016712,2]
[351247218,1738476452444,-500.0,0.00016712,2]
[351247219,1738476452467,-500.0,0.00016712,2]
[351247220,1738476452491,-500.0,0.00016712,2]